[Event "EYTCC U18 Open 2019"]
[Site "Pardubice"]
[Date "2019.07.14"]
[Round "4.33"]
[White "Engel, Luis"]
[Black "Willow, Jonah B"]
[Result "1-0"]
[ECO "B47"]
[WhiteElo "2509"]
[BlackElo "2343"]
[Annotator "ChessBase"]
[PlyCount "41"]
[EventDate "2019.07.11"]
[EventType "swiss"]
[EventCountry "CZE"]
[SourceTitle "playchess.com"]
[Source "ChessBase"]
[SourceQuality "1"]
[WhiteTeam "Germany"]
[BlackTeam "England"]
[WhiteTeamCountry "GER"]
[BlackTeamCountry "ENG"]
[TimeControl "40/5400+30:1800+30"]

1. e4 {[%emt 0:00:00]} c5 {[%emt 0:00:00]} 2. Nf3 {[%emt 0:00:00]} e6 {[%emt 0:00:00]} 3. d4 {[%emt 0:00:00]} cxd4 {[%emt 0:00:00]} 4. Nxd4 {[%emt 0:00:00]} Nc6 {[%emt 0:00:00]} 5. Nc3 {[%emt 0:00:00]} Qc7 {[%emt 0:00:00]} 6. Be2 {[%emt 0:00:00]} Nf6 {[%emt 0:00:00]} 7. Be3 {[%emt 0:00:03]} Be7 {[%emt 0:00:07]} 8. f4 {[%emt 0:00:18]} d6 {[%emt 0:00:22]} 9. Qd2 {[%emt 0:00:07]} O-O {[%emt 0:00:54]} 10. O-O-O {[%emt 0:00:06]} a6 {[%emt 0:02:30]} 11. g4 {[%emt 0:00:25]} b5 {[%emt 0:11:14]} 12. g5 {[%emt 0:01:58]} Nd7 {[%emt 0:01:27]} 13. Nxc6 {[%emt 0:01:20]} Qxc6 {[%emt 0:00:05]} 14. a3 {[%emt 0:00:10]} Rb8 {[%emt 0:20:43]} 15. f5 {[%emt 0:04:40]} a5 {[%emt 0:02:31]} 16. f6 {[%emt 0:03:57]} gxf6 {[%emt 0:00:39]} 17. gxf6 {[%emt 0:00:10]} Bxf6 {[%emt 0:02:27]} 18. Rhg1+ {[%emt 0:05:01]} Kh8 {[%emt 0:00:14]} 19. Bh6 {[%emt 0:02:12]} Rd8 {[%emt 0:17:37]} 20. Bh5 {[%emt 0:06:13]} b4 {[%emt 0:05:49]} 21. Qg2 {[%emt 0:01:13]} 1-0

[Event "EYTCC U18 Open 2019"]
[Site "Pardubice"]
[Date "2019.07.14"]
[Round "4.34"]
[White "Derakhshani, Borna"]
[Black "Buckels, Valentin"]
[Result "0-1"]
[ECO "A06"]
[WhiteElo "2300"]
[BlackElo "2451"]
[Annotator "RC"]
[PlyCount "72"]
[EventDate "2019.07.11"]
[EventType "swiss"]
[EventCountry "CZE"]
[SourceTitle "playchess.com"]
[Source "ChessBase"]
[SourceQuality "1"]
[WhiteTeam "England"]
[BlackTeam "Germany"]
[WhiteTeamCountry "ENG"]
[BlackTeamCountry "GER"]
[TimeControl "40/5400+30:1800+30"]

1. Nf3 {[%emt 0:00:00]} d5 {[%emt 0:00:00]} 2. d4 {[%emt 0:00:00]} e6 {[%emt 0:00:00]} 3. Bf4 {[%emt 0:00:00]} Bd6 {[%emt 0:00:54]} 4. Bg3 {[%emt 0:00:00]} Nf6 {[%emt 0:00:06]} 5. Nbd2 {[%emt 0:00:24]} c5 {[%emt 0:01:35]} 6. e3 {[%emt 0:00:11]} O-O {[%emt 0:00:19]} 7. c3 {[%emt 0:00:22]} Qc7 {[%emt 0:00:39]} 8. Ne5 {[%emt 0:04:08]} Nbd7 {[%emt 0:01:29]} 9. f4 {[%emt 0:00:39]} Ne4 {[%emt 0:02:03]} 10. Bd3 {[%emt 0:04:20]} Ndf6 {[%emt 0:04:17]} 11. O-O {[%emt 0:02:02]} b6 {[%emt 0:06:49]} 12. Bh4 {[%emt 0:01:02]} Bb7 {[%emt 0:06:34]} 13. Bxf6 {[%emt 0:02:19]} gxf6 {[%emt 0:12:09]} 14. Bxe4 {[%emt 0:06:13]} dxe4 {[%emt 0:01:34]} 15. Nec4 {[%emt 0:01:06]} Be7 {[%emt 0:03:35]} 16. f5 {[%emt 0:01:48]} Kh8 {[%emt 0:04:21]} 17. Qh5 {[%emt 0:01:36]} Bd5 {[%emt 0:01:45]} 18. Na3 {[%emt 0:07:11]} Rg8 {[%emt 0:06:28]} 19. c4 {[%emt 0:11:26]} Rg5 {[%emt 0:02:27]} 20. Qh3 {[%emt 0:02:05]} Bc6 {[%emt 0:03:18]} 21. d5 {[%emt 0:03:27]} exd5 {[%emt 0:01:51]} 22. cxd5 {[%emt 0:00:03]} Bxd5 {[%emt 0:00:17]} 23. Nb5 {[%emt 0:00:05]} Qe5 {[%emt 0:02:28]} 24. Nc3 {[%emt 0:00:05]} b5 {[%emt 0:08:33]} 25. Rad1 {[%emt 0:02:16]} Bc6 {[%emt 0:02:04]} 26. Rf4 {[%emt 0:02:47]} Rd8 {[%emt 0:07:02]} 27. Nf1 {[%emt 0:00:18]} Rxd1 {[%emt 0:03:14]} 28. Nxd1 {[%emt 0:00:01]} Bd7 {[%emt 0:05:02]} 29. Ng3 {[%emt 0:00:52]} Qd5 {[%emt 0:01:02]} 30. Nc3 {[%emt 0:03:20]} Qd3 {[%emt 0:03:01]} 31. Rxe4 {[%emt 0:12:37]} Bf8 {[%emt 0:00:42]} 32. Rf4 {[%emt 0:03:29]} Qxe3+ {[%emt 0:01:11]} 33. Rf2 {[%emt 0:00:01]} c4 {[%emt 0:02:06]} 34. Nd5 {[%emt 0:04:55]} Qd4 {[%emt 0:02:01]} 35. Nxf6 {[%emt 0:01:50]} Qxf6 {[%emt 0:00:16]} 36. Ne4 {[%emt 0:00:03]} Qd4 {[%emt 0:00:36]} 0-1

[Event "EYTCC U18 Open 2019"]
[Site "Pardubice"]
[Date "2019.07.14"]
[Round "4.35"]
[White "Schmidek, Emil"]
[Black "Grieve, Harry"]
[Result "1-0"]
[ECO "B48"]
[WhiteElo "2391"]
[BlackElo "2235"]
[Annotator "NA"]
[PlyCount "145"]
[EventDate "2019.07.11"]
[EventType "swiss"]
[EventCountry "CZE"]
[SourceTitle "playchess.com"]
[Source "ChessBase"]
[SourceQuality "1"]
[WhiteTeam "Germany"]
[BlackTeam "England"]
[WhiteTeamCountry "GER"]
[BlackTeamCountry "ENG"]
[TimeControl "40/5400+30:1800+30"]

1. e4 {[%emt 0:00:00]} c5 {[%emt 0:00:00]} 2. Nf3 {[%emt 0:00:00]} e6 {[%emt 0:00:24]} 3. d4 {[%emt 0:00:00]} cxd4 {[%emt 0:00:05]} 4. Nxd4 {[%emt 0:00:00]} Nc6 {[%emt 0:00:04]} 5. Nc3 {[%emt 0:00:01]} Qc7 {[%emt 0:00:06]} 6. Be3 {[%emt 0:00:07]} a6 {[%emt 0:00:23]} 7. Qd2 {[%emt 0:00:11]} Nf6 {[%emt 0:00:44]} 8. O-O-O {[%emt 0:00:26]} Bb4 {[%emt 0:00:14]} 9. f3 {[%emt 0:00:13]} Ne5 {[%emt 0:00:12]} 10. Nb3 {[%emt 0:03:55]} b5 {[%emt 0:00:06]} 11. Qe1 {[%emt 0:00:14]} Be7 {[%emt 0:00:28]} 12. f4 {[%emt 0:02:44]} Ng6 {[%emt 0:00:05]} 13. e5 {[%emt 0:00:08]} Ng4 {[%emt 0:00:05]} 14. Ne4 {[%emt 0:00:11]} Nxe3 {[%emt 0:00:16]} 15. Qxe3 {[%emt 0:00:02]} O-O {[%emt 0:00:34]} 16. Nd6 {[%emt 0:11:31]} Bb7 {[%emt 0:07:26]} 17. Rg1 {[%emt 0:21:53]} Bd5 {[%emt 0:08:19]} 18. Nf5 {[%emt 0:14:12]} a5 {[%emt 0:12:29]} 19. Nxe7+ {[%emt 0:03:48]} Nxe7 {[%emt 0:00:07]} 20. Qc5 {[%emt 0:00:16]} Rfc8 {[%emt 0:00:50]} 21. Qxc7 {[%emt 0:02:38]} Rxc7 {[%emt 0:00:02]} 22. Bxb5 {[%emt 0:02:00]} a4 {[%emt 0:06:31]} 23. Nd4 {[%emt 0:05:45]} Bxa2 {[%emt 0:01:56]} 24. Rd3 {[%emt 0:05:03]} Nd5 {[%emt 0:14:26]} 25. Ra3 {[%emt 0:03:09]} Bc4 {[%emt 0:00:12]} 26. g3 {[%emt 0:01:45]} Bxb5 {[%emt 0:03:25]} 27. Nxb5 {[%emt 0:00:06]} Rc5 {[%emt 0:01:42]} 28. Nd6 {[%emt 0:01:30]} f6 {[%emt 0:03:43]} 29. exf6 {[%emt 0:03:45]} gxf6 {[%emt 0:01:08]} 30. Rd1 {[%emt 0:05:50]} Rc6 {[%emt 0:22:00]} 31. Nf5 {[%emt 0:07:47]} Kf7 {[%emt 0:05:19]} 32. Nd4 {[%emt 0:02:43]} Rc4 {[%emt 0:04:33]} 33. b3 {[%emt 0:03:26]} Rb4 {[%emt 0:01:11]} 34. Rd3 {[%emt 0:00:52]} Rc8 {[%emt 0:05:04]} 35. Rxa4 {[%emt 0:00:39]} Rxa4 {[%emt 0:00:37]} 36. bxa4 {[%emt 0:00:01]} Rc4 {[%emt 0:01:29]} 37. a5 {[%emt 0:00:31]} Nb4 {[%emt 0:00:42]} 38. Rd2 {[%emt 0:00:33]} d5 {[%emt 0:00:47]} 39. Kb2 {[%emt 0:00:45]} e5 {[%emt 0:00:57]} 40. fxe5 {[%emt 0:00:16]} fxe5 {[%emt 0:00:10]} 41. Nf3 {[%emt 0:02:56]} Ke6 {[%emt 0:02:33]} 42. Ng5+ {[%emt 0:07:27]} Kf5 {[%emt 0:02:29]} 43. Nxh7 {[%emt 0:02:11]} e4 {[%emt 0:05:42]} 44. Rf2+ {[%emt 0:03:19]} Ke5 {[%emt 0:00:01]} 45. Ng5 {[%emt 0:00:56]} Nc6 {[%emt 0:09:28]} 46. h4 {[%emt 0:05:20]} Rb4+ {[%emt 0:02:24]} 47. Kc1 {[%emt 0:03:18]} Nxa5 {[%emt 0:02:13]} 48. h5 {[%emt 0:00:44]} e3 {[%emt 0:02:35]} 49. Rh2 {[%emt 0:06:11]} Nc4 {[%emt 0:05:12]} 50. h6 {[%emt 0:00:18]} Rb8 {[%emt 0:02:28]} 51. h7 {[%emt 0:00:34]} e2 {[%emt 0:00:19]} 52. Rxe2+ {[%emt 0:00:54]} Kf6 {[%emt 0:00:09]} 53. Rh2 {[%emt 0:02:26]} Rh8 {[%emt 0:00:12]} 54. Nf3 {[%emt 0:00:10]} Kg6 {[%emt 0:01:37]} 55. Nh4+ {[%emt 0:01:03]} Kg5 {[%emt 0:00:39]} 56. Ng2 {[%emt 0:00:35]} Kg4 {[%emt 0:00:34]} 57. Rh6 {[%emt 0:00:05]} Kxg3 {[%emt 0:00:30]} 58. Nh4 {[%emt 0:00:04]} Ne5 {[%emt 0:00:04]} 59. Ng6 {[%emt 0:00:19]} Nxg6 {[%emt 0:00:49]} 60. Rxg6+ {[%emt 0:00:03]} Kf4 {[%emt 0:00:17]} 61. Rh6 {[%emt 0:00:10]} Ke3 {[%emt 0:00:48]} 62. Kd1 {[%emt 0:00:46]} Kd4 {[%emt 0:00:34]} 63. Kd2 {[%emt 0:00:05]} Kc4 {[%emt 0:00:13]} 64. c3 {[%emt 0:00:23]} d4 {[%emt 0:00:35]} 65. Rh4 {[%emt 0:00:05]} Kc5 {[%emt 0:00:03]} 66. cxd4+ {[%emt 0:00:11]} Kd5 {[%emt 0:00:03]} 67. Kd3 {[%emt 0:00:04]} Kd6 {[%emt 0:00:03]} 68. Rh5 {[%emt 0:00:04]} Ke6 {[%emt 0:00:05]} 69. d5+ {[%emt 0:00:04]} Kd6 {[%emt 0:00:09]} 70. Kd4 {[%emt 0:00:03]} Kd7 {[%emt 0:00:04]} 71. Rh6 {[%emt 0:00:04]} Kc8 {[%emt 0:00:25]} 72. Ke5 {[%emt 0:00:04]} Kd7 {[%emt 0:00:10]} 73. Kf6 {[%emt 0:00:04]} 1-0

[Event "EYTCC U18 Open 2019"]
[Site "Pardubice"]
[Date "2019.07.14"]
[Round "4.36"]
[White "Stoyanov, Viktor"]
[Black "Krastev, Alexander"]
[Result "1/2-1/2"]
[ECO "A30"]
[WhiteElo "2198"]
[BlackElo "2325"]
[Annotator "NA"]
[PlyCount "96"]
[EventDate "2019.07.11"]
[EventType "swiss"]
[EventCountry "CZE"]
[SourceTitle "playchess.com"]
[Source "ChessBase"]
[SourceQuality "1"]
[WhiteTeam "England"]
[BlackTeam "Germany"]
[WhiteTeamCountry "ENG"]
[BlackTeamCountry "GER"]
[TimeControl "40/5400+30:1800+30"]

1. c4 {[%emt 0:00:00]} c5 {[%emt 0:00:20]} 2. Nf3 {[%emt 0:00:00]} Nf6 {[%emt 0:00:14]} 3. Nc3 {[%emt 0:00:00]} g6 {[%emt 0:00:29]} 4. e3 {[%emt 0:06:13]} Bg7 {[%emt 0:00:07]} 5. d4 {[%emt 0:01:51]} O-O {[%emt 0:00:07]} 6. Be2 {[%emt 0:01:39]} cxd4 {[%emt 0:15:20]} 7. Nxd4 {[%emt 0:02:49]} Nc6 {[%emt 0:01:45]} 8. Nc2 {[%emt 0:03:33]} d6 {[%emt 0:02:35]} 9. O-O {[%emt 0:00:19]} Be6 {[%emt 0:03:20]} 10. Rb1 {[%emt 0:01:51]} d5 {[%emt 0:05:04]} 11. Na3 {[%emt 0:23:19]} Rc8 {[%emt 0:11:19]} 12. Bd2 {[%emt 0:04:14]} Bf5 {[%emt 0:19:10]} 13. Rc1 {[%emt 0:01:41]} d4 {[%emt 0:00:16]} 14. exd4 {[%emt 0:07:37]} Nxd4 {[%emt 0:01:08]} 15. Re1 {[%emt 0:00:17]} Rc7 {[%emt 0:05:59]} 16. Bf4 {[%emt 0:07:40]} Rd7 {[%emt 0:00:20]} 17. Qa4 {[%emt 0:02:26]} a6 {[%emt 0:01:51]} 18. Bf1 {[%emt 0:01:50]} Nh5 {[%emt 0:01:35]} 19. Be3 {[%emt 0:01:41]} e5 {[%emt 0:00:12]} 20. c5 {[%emt 0:02:47]} Nf6 {[%emt 0:05:56]} 21. h3 {[%emt 0:03:25]} Ne4 {[%emt 0:01:12]} 22. Ne2 {[%emt 0:02:39]} Rc7 {[%emt 0:08:21]} 23. Qa5 {[%emt 0:02:37]} Rxc5 {[%emt 0:02:42]} 24. Rxc5 {[%emt 0:02:58]} b6 {[%emt 0:00:04]} 25. Rd5 {[%emt 0:00:58]} bxa5 {[%emt 0:00:53]} 26. Rxd8 {[%emt 0:00:05]} Rxd8 {[%emt 0:00:01]} 27. Rc1 {[%emt 0:00:29]} Be6 {[%emt 0:02:01]} 28. f3 {[%emt 0:01:57]} Nd6 {[%emt 0:00:49]} 29. Nc3 {[%emt 0:00:21]} Rb8 {[%emt 0:02:00]} 30. b3 {[%emt 0:01:02]} N6b5 {[%emt 0:00:21]} 31. Nc4 {[%emt 0:01:53]} Nxc3 {[%emt 0:00:14]} 32. Rxc3 {[%emt 0:00:01]} e4 {[%emt 0:00:15]} 33. Rc1 {[%emt 0:01:55]} exf3 {[%emt 0:04:17]} 34. Nxa5 {[%emt 0:00:25]} fxg2 {[%emt 0:00:04]} 35. Kxg2 {[%emt 0:00:09]} h5 {[%emt 0:00:36]} 36. Bxd4 {[%emt 0:02:06]} Bxd4 {[%emt 0:00:27]} 37. Nc6 {[%emt 0:00:04]} Be3 {[%emt 0:04:45]} 38. Nxb8 {[%emt 0:00:16]} Bxc1 {[%emt 0:00:02]} 39. Nxa6 {[%emt 0:00:15]} Kf8 {[%emt 0:02:08]} 40. Nc5 {[%emt 0:00:16]} Bd5+ {[%emt 0:00:14]} 41. Kf2 {[%emt 0:30:09]} Ke7 {[%emt 0:30:57]} 42. Bc4 {[%emt 0:05:54]} Bxc4 {[%emt 0:00:00]} 43. bxc4 {[%emt 0:00:00]} Ba3 {[%emt 0:00:00]} 44. Nd3 {[%emt 0:00:00]} g5 {[%emt 0:00:00]} 45. h4 {[%emt 0:00:00]} f6 {[%emt 0:00:00]} 46. Kf3 {[%emt 0:00:00]} Ke6 {[%emt 0:00:00]} 47. hxg5 {[%emt 0:00:00]} fxg5 {[%emt 0:00:00]} 48. Nf4+ {[%emt 0:00:00]} gxf4 {[%emt 0:00:00]} 1/2-1/2

[Event "EYTCC U18 Open 2019"]
[Site "Pardubice"]
[Date "2019.07.15"]
[Round "5.1"]
[White "Gazik, Viktor"]
[Black "Gumularz, Szymon"]
[Result "1/2-1/2"]
[ECO "A22"]
[WhiteElo "2525"]
[BlackElo "2502"]
[Annotator "ChessBase"]
[PlyCount "49"]
[EventDate "2019.07.11"]
[EventType "swiss"]
[EventCountry "CZE"]
[SourceTitle "playchess.com"]
[Source "ChessBase"]
[SourceQuality "1"]
[WhiteTeam "Slovakia"]
[BlackTeam "Poland"]
[WhiteTeamCountry "SVK"]
[BlackTeamCountry "POL"]
[TimeControl "40/5400+30:1800+30"]

1. c4 {[%emt 0:00:00]} Nf6 {[%emt 0:00:00]} 2. Nc3 {[%emt 0:00:00]} e5 {[%emt 0:01:50]} 3. g3 {[%emt 0:00:00]} d5 {[%emt 0:03:19]} 4. cxd5 {[%emt 0:00:00]} Nxd5 {[%emt 0:00:02]} 5. Bg2 {[%emt 0:00:09]} Nb6 {[%emt 0:00:04]} 6. Nf3 {[%emt 0:01:19]} Nc6 {[%emt 0:00:04]} 7. a3 {[%emt 0:01:47]} Be7 {[%emt 0:00:35]} 8. b4 {[%emt 0:02:28]} Be6 {[%emt 0:01:37]} 9. Rb1 {[%emt 0:07:10]} f6 {[%emt 0:00:34]} 10. O-O {[%emt 0:16:48]} O-O {[%emt 0:00:08]} 11. d3 {[%emt 0:03:33]} a5 {[%emt 0:00:31]} 12. b5 {[%emt 0:05:12]} Nd4 {[%emt 0:00:05]} 13. e3 {[%emt 0:07:41]} Nxf3+ {[%emt 0:06:58]} 14. Bxf3 {[%emt 0:00:10]} Rb8 {[%emt 0:00:23]} 15. Qc2 {[%emt 0:03:45]} Qc8 {[%emt 0:28:15]} 16. Bh1 {[%emt 0:07:24]} Rd8 {[%emt 0:00:59]} 17. Rd1 {[%emt 0:01:08]} Bg4 {[%emt 0:02:37]} 18. Rd2 {[%emt 0:01:31]} Bf5 {[%emt 0:07:54]} 19. Bb2 {[%emt 0:01:59]} Qd7 {[%emt 0:00:55]} 20. Rbd1 {[%emt 0:04:16]} Bg4 {[%emt 0:05:15]} 21. Rc1 {[%emt 0:08:27]} Bf5 {[%emt 0:02:35]} 22. Rcd1 {[%emt 0:11:30]} Bg4 {[%emt 0:00:11]} 23. Rc1 {[%emt 0:00:39]} Bf5 {[%emt 0:00:06]} 24. Qd1 Kh8 25. Ne4 1/2-1/2

[Event "EYTCC U18 Open 2019"]
[Site "Pardubice"]
[Date "2019.07.15"]
[Round "5.2"]
[White "Teclaf, Pawel"]
[Black "Pechac, Jergus"]
[Result "1/2-1/2"]
[ECO "B34"]
[WhiteElo "2454"]
[BlackElo "2469"]
[Annotator "ChessBase"]
[PlyCount "95"]
[EventDate "2019.07.11"]
[EventType "swiss"]
[EventCountry "CZE"]
[SourceTitle "playchess.com"]
[Source "ChessBase"]
[SourceQuality "1"]
[WhiteTeam "Poland"]
[BlackTeam "Slovakia"]
[WhiteTeamCountry "POL"]
[BlackTeamCountry "SVK"]
[TimeControl "40/5400+30:1800+30"]

1. e4 {[%emt 0:00:00]} c5 {[%emt 0:00:00]} 2. Ne2 {[%emt 0:00:00]} Nf6 {[%emt 0:00:00]} 3. Nbc3 {[%emt 0:00:00]} Nc6 {[%emt 0:00:11]} 4. d4 {[%emt 0:00:00]} cxd4 {[%emt 0:00:06]} 5. Nxd4 {[%emt 0:00:00]} e5 {[%emt 0:00:28]} 6. Ndb5 {[%emt 0:00:03]} d6 {[%emt 0:00:09]} 7. Nd5 {[%emt 0:00:03]} Nxd5 {[%emt 0:00:08]} 8. exd5 {[%emt 0:00:03]} Nb8 {[%emt 0:00:44]} 9. a4 {[%emt 0:00:03]} Be7 {[%emt 0:00:09]} 10. Be2 {[%emt 0:02:44]} O-O {[%emt 0:00:13]} 11. O-O {[%emt 0:00:08]} Nd7 {[%emt 0:00:06]} 12. Bd2 {[%emt 0:02:45]} f5 {[%emt 0:01:07]} 13. a5 {[%emt 0:18:05]} a6 {[%emt 0:00:51]} 14. Na3 {[%emt 0:00:38]} Rf6 {[%emt 0:08:57]} 15. f4 {[%emt 0:07:36]} e4 {[%emt 0:16:57]} 16. Nc4 {[%emt 0:01:27]} Rh6 {[%emt 0:01:33]} 17. Be3 {[%emt 0:08:05]} Qe8 {[%emt 0:09:04]} 18. Ra3 {[%emt 0:10:24]} Rb8 {[%emt 0:06:00]} 19. Ba7 {[%emt 0:03:05]} Ra8 {[%emt 0:00:06]} 20. Bd4 {[%emt 0:02:01]} Rb8 {[%emt 0:01:57]} 21. b4 {[%emt 0:06:51]} Nf6 {[%emt 0:02:32]} 22. Nb6 {[%emt 0:01:21]} Bd7 {[%emt 0:02:11]} 23. c4 {[%emt 0:04:25]} Bd8 {[%emt 0:09:44]} 24. Rg3 {[%emt 0:04:28]} Rg6 {[%emt 0:02:29]} 25. Rxg6 {[%emt 0:04:31]} hxg6 {[%emt 0:00:06]} 26. Qb3 {[%emt 0:01:16]} Bxb6 {[%emt 0:01:03]} 27. axb6 {[%emt 0:03:08]} Rc8 {[%emt 0:01:20]} 28. h3 {[%emt 0:01:31]} Ba4 {[%emt 0:01:17]} 29. Qb1 {[%emt 0:01:42]} Qd8 {[%emt 0:01:10]} 30. Qa2 {[%emt 0:03:44]} Be8 {[%emt 0:00:21]} 31. Qa3 {[%emt 0:01:32]} Bf7 {[%emt 0:01:12]} 32. Kh2 {[%emt 0:01:39]} Kf8 {[%emt 0:00:21]} 33. Rd1 {[%emt 0:01:35]} Qe7 {[%emt 0:02:32]} 34. Be3 {[%emt 0:00:42]} Kg8 {[%emt 0:00:32]} 35. Qa5 {[%emt 0:01:57]} Kh8 {[%emt 0:02:06]} 36. Qa1 {[%emt 0:01:18]} Kg8 {[%emt 0:00:11]} 37. Qd4 {[%emt 0:00:53]} Qd7 {[%emt 0:01:38]} 38. Qa1 {[%emt 0:00:49]} Qe7 {[%emt 0:01:27]} 39. Rc1 {[%emt 0:01:21]} Kh7 {[%emt 0:03:05]} 40. Rd1 {[%emt 0:06:06]} Kg8 {[%emt 0:00:19]} 41. Qd4 {[%emt 0:31:40]} Kh7 {[%emt 0:31:50]} 42. Rd2 {[%emt 0:00:00]} Kg8 {[%emt 0:00:00]} 43. Qa1 {[%emt 0:00:00]} Qd8 {[%emt 0:00:00]} 44. g3 {[%emt 0:00:00]} Nd7 {[%emt 0:00:00]} 45. Qd4 {[%emt 0:00:00]} Nf6 {[%emt 0:00:00]} 46. Bd1 {[%emt 0:00:00]} Nd7 {[%emt 0:00:00]} 47. Bb3 {[%emt 0:00:00]} g5 {[%emt 0:00:00]} 48. Rg2 {[%emt 0:00:00]} 1/2-1/2

[Event "EYTCC U18 Open 2019"]
[Site "Pardubice"]
[Date "2019.07.15"]
[Round "5.3"]
[White "Haring, Filip"]
[Black "Kosakowski, Jakub"]
[Result "0-1"]
[ECO "C56"]
[WhiteElo "2334"]
[BlackElo "2394"]
[Annotator "ChessBase"]
[PlyCount "102"]
[EventDate "2019.07.11"]
[EventType "swiss"]
[EventCountry "CZE"]
[SourceTitle "playchess.com"]
[Source "ChessBase"]
[SourceQuality "1"]
[WhiteTeam "Slovakia"]
[BlackTeam "Poland"]
[WhiteTeamCountry "SVK"]
[BlackTeamCountry "POL"]
[TimeControl "40/5400+30:1800+30"]

1. e4 {[%emt 0:00:00]} e5 {[%emt 0:00:06]} 2. Nf3 {[%emt 0:02:18]} Nc6 {[%emt 0:00:18]} 3. d4 {[%emt 0:00:26]} exd4 {[%emt 0:00:09]} 4. Bc4 {[%emt 0:01:29]} Nf6 {[%emt 0:01:16]} 5. O-O {[%emt 0:01:20]} Nxe4 {[%emt 0:00:55]} 6. Re1 {[%emt 0:00:11]} d5 {[%emt 0:00:12]} 7. Bxd5 {[%emt 0:00:40]} Qxd5 {[%emt 0:00:07]} 8. Nc3 {[%emt 0:00:07]} Qh5 {[%emt 0:00:37]} 9. Nxe4 {[%emt 0:00:10]} Be6 {[%emt 0:00:09]} 10. Bg5 {[%emt 0:00:16]} Bd6 {[%emt 0:00:11]} 11. Nxd6+ {[%emt 0:04:14]} cxd6 {[%emt 0:00:07]} 12. Bf4 {[%emt 0:01:51]} Qd5 {[%emt 0:00:15]} 13. c3 {[%emt 0:11:22]} Qf5 {[%emt 0:00:18]} 14. Bg3 {[%emt 0:08:15]} dxc3 {[%emt 0:05:46]} 15. bxc3 {[%emt 0:04:41]} O-O {[%emt 0:03:11]} 16. Qxd6 {[%emt 0:01:54]} Rfd8 {[%emt 0:01:29]} 17. Qa3 {[%emt 0:00:29]} Rd3 {[%emt 0:18:58]} 18. Qb2 {[%emt 0:09:04]} b6 {[%emt 0:00:56]} 19. Rad1 {[%emt 0:10:53]} Rad8 {[%emt 0:01:42]} 20. Rxd3 {[%emt 0:00:48]} Rxd3 {[%emt 0:00:40]} 21. c4 {[%emt 0:07:55]} Qa5 {[%emt 0:05:07]} 22. Rc1 {[%emt 0:06:29]} h6 {[%emt 0:00:51]} 23. h4 {[%emt 0:03:27]} Qa3 {[%emt 0:07:17]} 24. Qxa3 {[%emt 0:03:25]} Rxa3 {[%emt 0:00:07]} 25. c5 {[%emt 0:01:24]} b5 {[%emt 0:03:59]} 26. Ne5 {[%emt 0:07:32]} Nd4 {[%emt 0:00:14]} 27. Rd1 {[%emt 0:02:01]} Ne2+ {[%emt 0:00:31]} 28. Kh2 {[%emt 0:00:06]} Nxg3 {[%emt 0:00:10]} 29. fxg3 {[%emt 0:01:19]} Rxa2 {[%emt 0:01:28]} 30. c6 {[%emt 0:02:42]} Rc2 {[%emt 0:00:21]} 31. Rd8+ {[%emt 0:00:28]} Kh7 {[%emt 0:00:06]} 32. Rb8 {[%emt 0:04:24]} Bd5 {[%emt 0:13:20]} 33. Nd7 {[%emt 0:03:12]} Kg6 {[%emt 0:00:28]} 34. h5+ {[%emt 0:00:02]} Kf5 {[%emt 0:00:51]} 35. Rxb5 {[%emt 0:00:05]} Ke6 {[%emt 0:00:10]} 36. Nc5+ {[%emt 0:00:41]} Kd6 {[%emt 0:01:07]} 37. c7 {[%emt 0:00:22]} Bxg2 {[%emt 0:00:22]} 38. c8=N+ {[%emt 0:02:22]} Kc7 {[%emt 0:00:07]} 39. Na6+ {[%emt 0:00:32]} Kxc8 {[%emt 0:00:07]} 40. Rb8+ {[%emt 0:00:20]} Kd7 {[%emt 0:00:05]} 41. Kg1 {[%emt 0:30:32]} Bd5 {[%emt 0:32:55]} 42. Rb4 {[%emt 0:00:00]} Kd6 {[%emt 0:00:00]} 43. Rg4 {[%emt 0:00:00]} Rc6 {[%emt 0:00:00]} 44. Ra4 {[%emt 0:00:00]} Rc1+ {[%emt 0:00:00]} 45. Kf2 {[%emt 0:00:00]} Rc2+ {[%emt 0:00:00]} 46. Ke3 {[%emt 0:00:00]} Ra2 {[%emt 0:00:00]} 47. Rxa2 {[%emt 0:00:00]} Bxa2 {[%emt 0:00:00]} 48. g4 {[%emt 0:00:00]} Be6 {[%emt 0:00:00]} 49. Kf4 {[%emt 0:00:00]} Bc4 {[%emt 0:00:00]} 50. Nb4 {[%emt 0:00:00]} Kc5 {[%emt 0:00:00]} 51. Nc2 {[%emt 0:00:00]} Bd3 {[%emt 0:00:00]} 0-1